Cogmind - Beta 17.1 @@@ ROGUE MODE // 2026.08.27 @ 19:51:50 Player: 7H-NLC Result: Exoskeleton Destroyed Performance ------------- Evolutions (8) 4000 Regions Visited (26) 5200 Robots Destroyed (101) 505 Value Destroyed (2894) 2894 Prototype IDs (78) 1560 Alien Tech Used (14) 2800 Bonus (15396) 15396 TOTAL SCORE: 32355 Bonus ------- Triggered Max Security 2000 High Alert Combat Kills 608 Follower Combat Kills 1636 Hunted by Unchained 500 Network Hubs Disabled 200 Registered with UFD 300 Met Data Miner 300 Met Zhirov 300 Built Enhanced Grunts 300 A7 Reached Mainframe 300 Met R17 at Cetus 500 Used Core Reset Matrix 3000 Scanned by Researcher 500 Integrated Exoskeleton 5000 Friendly Fire -48 Cogmind --------- Core Integrity 0/1450 Matter 154/300 Energy 700/700 System Corruption 0% +Membrane Temperature Cool (0) Movement Walking (90) Ox1 Location -2/Testing Parts ------- > --- POWER (1) -------- Quantum Reactor > --- PROPULSION (3) --- Sigix Exoskeleton > --- UTILITY (5) ------ Medium Storage Unit SHELL Armor > --- WEAPON (2) ------- Sigix Sheargun (fused) Sigix Sheargun > --- INVENTORY (12) --- Matter Drive 2N-1CE's Frost Array Quantum Shading Machine Advanced Transmission Jammer High-powered Transdimensional Reconstructor Core Regenerator Subatomic Replicator Sigix Sheargun Sigix Sheargun Sigix Shearcannon Peak State ------------ > --- POWER ------------ Quantum Reactor > --- PROPULSION ------- Sigix Exoskeleton > --- UTILITY ---------- Medium Storage Unit SHELL Armor Thermal Barrier > --- WEAPON ----------- Sigix Sheargun Sigix Sheargun > --- INVENTORY -------- Matter Drive Advanced Transmission Jammer Transdimensional Reconstructor High-powered Transdimensional Reconstructor High-powered Transdimensional Reconstructor High-powered Transdimensional Reconstructor Core Regenerator Subatomic Replicator Sigix Sheargun Sigix Sheargun Sigix Shearcannon [Rating: 249] Favorites ----------- Power Cooled Ion Engine Engine Cooled Ion Engine Power Core Light Fission Core Reactor Antimatter Reactor Propulsion Xenon Bombardment Thruster Treads Centrium Heavy Treads Leg Titanium Leg Hover Unit Backup Propulsion I Flight Unit Xenon Bombardment Thruster Utility High-capacity Storage Unit Device Improved Heat Sink Storage High-capacity Storage Unit Processor Advanced Signal Interpreter Hackware Quantum Router Protection Centrium Medium Armor Plating Artifact Phase Redirector Weapon Power Maul Energy Gun Particle Gun Energy Cannon Heavy Particle Cannon Ballistic Gun KE Penetrator Ballistic Cannon Mass Driver Launcher Compact Tesla Bomb Launcher Special Weapon LU-1G1's Laser Shovel Impact Weapon Power Maul Slashing Weapon Chainsword Piercing Weapon Heavy Pick Special Melee Weapon Improved Datajack Build | -11 -10 -10 -9 -9 -9 -9 -6 -6 -6 -6 -5 -5 -5 -5 -5 -4 -4 -4 -4 -4 -4 -3 -3 -3 -2 -2 ------- Run | Yrd Mat Min Mat Sto Rec Scr Fac Low Low Dat Pro Fac Upp Upp Zhi Pro Fac Ext Cet Arc Hub Res Qua Sec Res Tes Slots Evolved 16 | . . . 2 . . . 6 . . . . 2 . . . . 2 . . . . 2 . . 2 . Power 1 | . . . . . . . 1 . . . . . . . . . . . . . . . . . . . Propulsion 6 | . . . 1 . . . 2 . . . . 1 . . . . 1 . . . . 1 . . . . Utility 9 | . . . 1 . . . 3 . . . . 1 . . . . 1 . . . . 1 . . 2 . Weapon . | . . . . . . . . . . . . . . . . . . . . . . . . . . . Parts Attached 223 | 7 9 13 5 6 1 5 24 7 . 2 . 22 2 4 6 1 6 12 9 4 4 8 27 21 3 15 Power 28 | 1 1 1 2 1 . . 3 1 . 1 . 1 . 1 1 1 1 . . . 1 2 4 4 1 . Engine 12 | 1 1 1 2 1 . . 2 . . 1 . 1 . 1 . 1 . . . . . . . . . . Core 5 | . . . . . . . 1 1 . . . . . . . . . . . . 1 . 2 . . . Reactor 11 | . . . . . . . . . . . . . . . 1 . 1 . . . . 2 2 4 1 . Propulsion 43 | 2 . 5 2 . . . 5 2 . . . 6 1 . 1 . 2 1 1 1 3 2 3 6 . . Treads 1 | . . . . . . . . . . . . . . . . . . . 1 . . . . . . . Leg 10 | 2 . 5 2 . . . . . . . . . . . . . . . . 1 . . . . . . Wheel . | . . . . . . . . . . . . . . . . . . . . . . . . . . . Hover 2 | . . . . . . . . . . . . 1 . . . . . . . . . . 1 . . . Flight 30 | . . . . . . . 5 2 . . . 5 1 . 1 . 2 1 . . 3 2 2 6 . . Utility 104 | 2 3 5 . 1 . 3 12 4 . 1 . 12 1 1 3 . 3 5 4 1 . 4 14 8 2 15 Device 49 | 1 1 4 . 1 . 1 7 3 . 1 . 1 . . 2 . 1 3 1 1 . 3 7 3 1 7 Storage 15 | 1 2 1 . . . 2 . . . . . 1 . . . . 1 . . . . . 2 . 1 4 Processor 17 | . . . . . . . 3 1 . . . 4 . 1 . . . 1 . . . 1 1 3 . 2 Hackware 9 | . . . . . . . 2 . . . . 4 1 . . . . . . . . . 2 . . . Protection 12 | . . . . . . . . . . . . 2 . . 1 . 1 1 3 . . . . 2 . 2 Artifact 2 | . . . . . . . . . . . . . . . . . . . . . . . 2 . . . Weapon 48 | 2 5 2 1 4 1 2 4 . . . . 3 . 2 1 . . 6 4 2 . . 6 3 . . Energy Gun 20 | 2 3 2 1 1 . . 1 . . . . 1 . 2 . . . . 4 . . . 1 2 . . Energy Cannon 7 | . . . . 3 . . . . . . . 1 . . . . . 1 . 1 . . 1 . . . Ballistic Gun 1 | . . . . . . . . . . . . . . . . . . 1 . . . . . . . . Ballistic Cannon 2 | . . . . . . . 1 . . . . 1 . . . . . . . . . . . . . . Launcher 2 | . . . . . . . . . . . . . . . . . . . . . . . 2 . . . Special Weapon 4 | . . . . . 1 1 . . . . . . . . . . . 1 . . . . 1 . . . Impact Weapon 5 | . 2 . . . . . 2 . . . . . . . . . . . . 1 . . . . . . Slashing Weapon 4 | . . . . . . 1 . . . . . . . . . . . 2 . . . . . 1 . . Piercing Weapon 1 | . . . . . . . . . . . . . . . . . . . . . . . 1 . . . Special Melee Weapon 2 | . . . . . . . . . . . . . . . 1 . . 1 . . . . . . . . Unidentified Prototypes 39 | . . 1 1 1 . 1 2 . . . . 3 . . 5 . 2 1 3 3 . 2 3 1 . 10 Parts Lost 41 | . 2 . . . . 5 . 2 . . 10 . 1 . . . . 3 . . 3 2 2 10 . 1 Power 4 | . 1 . . . . . . . . . 2 . . . . . . . . . . 1 . . . . Propulsion 13 | . . . . . . . . 2 . . 4 . 1 . . . . 2 . . 1 . . 3 . . Utility 17 | . . . . . . 2 . . . . 3 . . . . . . 1 . . 2 . 2 6 . 1 Weapon 7 | . 1 . . . . 3 . . . . 1 . . . . . . . . . . 1 . 1 . . Highest Loss Streak 7 | . 2 . . . . 4 . 2 . . 7 . 1 . . . . 1 . . 3 1 2 3 . 1 To Critical Strikes . | . . . . . . . . . . . . . . . . . . . . . . . . . . . Average Backups 10 | . 6 13 19 20 20 19 4 4 4 5 5 4 4 4 4 5 5 4 4 5 5 4 6 10 10 10 Power . | . . . . 2 2 1 . . . . . . . . . . . . . 1 1 1 . . . . Propulsion 1 | . . 1 3 3 3 2 1 . . . . . . . 2 3 3 2 1 1 1 . 1 1 . . Utility 4 | . 3 7 8 7 8 7 1 2 3 3 3 2 2 2 . 1 1 . 2 2 2 2 2 . . 1 Weapon 2 | . 2 4 7 7 6 5 1 . . 1 1 . 1 1 . . . . . . . . . 1 3 3 Tool/Special . | . . . . . . . . . . . . . . . . . . . . . . . . . . . Unused Backups 36 | . 4 1 1 . . 6 2 1 . 1 . 3 . 1 1 . 1 . . . . 2 4 3 . 5 Power 1 | . . . . . . . . . . . . . . . . . . . . . . 1 . . . . Propulsion 5 | . . . . . . 2 1 . . . . . . . . . . . . . . . . 2 . . Utility 17 | . 3 1 1 . . 3 1 . . 1 . . . 1 1 . 1 . . . . 1 2 1 . . Weapon 7 | . 1 . . . . 1 . 1 . . . 2 . . . . . . . . . . . . . 2 Tool/Special 6 | . . . . . . . . . . . . 1 . . . . . . . . . . 2 . . 3 Average Slot Usage (%) 92 | . 98 100 99 100 100 97 73 99 100 100 82 66 87 89 90 94 91 87 89 89 89 88 88 80 72 63 Engine 7 | . 14 14 11 11 11 10 7 6 6 11 8 8 5 6 10 11 7 4 . . . . . . . . Reactor 2 | . . . . . . . . . . . . . . . . . 2 5 5 5 5 4 8 9 9 9 Leg 14 | . 28 28 33 33 33 32 . . . . . . . . . . . . . . . . . 2 9 9 Flight 14 | . . . . . . . 26 32 33 33 24 17 29 29 29 29 30 30 31 31 29 31 27 21 . . Device 17 | . 12 14 21 22 22 21 5 18 20 20 17 2 4 5 5 17 16 12 25 26 25 22 16 13 18 9 Storage 6 | . 15 14 11 11 11 10 . . . . . . . . . . . 3 . . . . 1 5 9 9 Processor 4 | . . . . . . . 10 18 20 20 18 10 5 5 5 5 5 5 . . . 2 4 4 9 . Hackware 2 | . . . . . . . 9 1 . . . 8 23 23 21 5 5 5 5 5 5 4 10 5 . . Protection 2 | . . . . . . . . . . . . 1 5 5 5 11 13 10 10 10 9 8 4 4 . 8 Energy Gun 6 | . 23 24 22 6 . . . . . . . 2 . 8 6 5 2 . 8 7 9 5 . 5 18 18 Energy Cannon 3 | . . . . 8 11 10 . . . . . . 5 1 . . . . . . . . 3 1 . . Impact Weapon 3 | . 3 3 . 6 11 . 7 13 13 13 11 . . . . . . . . 2 . . . . . . Slashing Weapon 1 | . . . . . . 10 . . . . . . . . . . . 1 . . . . . 1 . . Peak Build Rating 249 | 7 11 26 32 32 29 31 66 65 64 67 65 93 93 96 99 103 115 117 122 122 122 153 170 222 233 249 Average Rating 74 | 5 8 16 30 29 28 30 49 63 64 64 53 61 92 94 91 99 109 109 116 115 118 141 155 174 226 244 On Entrance 81 | . 7 11 26 30 29 29 7 65 64 64 65 3 86 92 96 99 99 110 115 117 117 114 147 161 222 233 Avg Prop Armor Cover (%) 6 | . . . . . . . 6 . . . . 7 . . . . . 1 . . . . . . . . Naked Turns 92 | . . . . . . 34 . . . . 50 8 . . . . . . . . . . . . . . Heaviest Build 78 | 15 32 54 60 60 60 60 26 24 23 30 30 37 37 40 42 42 50 57 57 51 56 52 69 69 52 78 Greatest Support 80 | 20 20 34 54 54 54 54 35 35 35 35 35 43 43 43 43 43 50 57 57 57 65 66 80 74 60 80 Greatest Overweight (x) 2 | 1 1 2 1 1 1 1 . . . . 1 . . . . . . 1 1 . . . . . . 1 Average Overweight (x) . | . . 1 1 1 1 . . . . . . . . . . . . . . . . . . . . . Largest Inventory Capacity 35 | 8 15 20 20 20 20 35 5 5 5 5 5 25 5 5 5 5 5 5 5 5 5 5 10 12 27 12 Average Capacity 11 | 7 8 18 20 20 20 19 5 5 5 5 5 5 5 5 5 5 5 5 5 5 5 5 6 10 12 12 Most Carried 20 | 2 8 20 20 20 20 20 5 5 5 5 5 5 5 5 5 5 5 5 5 5 5 5 10 12 12 12 Average Carried 10 | . 6 13 19 20 20 19 4 4 4 4 5 4 4 4 4 5 5 4 4 5 4 4 6 10 11 11 Final Capacity 20 | 8 8 20 20 20 20 5 5 5 5 5 5 5 5 5 5 5 5 5 5 5 5 5 10 12 12 12 Final Carried 20 | 2 8 20 20 20 20 4 5 4 5 5 5 5 4 5 5 5 5 5 5 5 5 5 10 12 12 11 Class Distribution -------------------- 43% | Mutant 18% | Hacker-Sprinter 12% | Derelict-Sprinter 6% | Alien-Sigix 4% | Commander-Sprinter 3% | Hacker-Mutant 3% | Scavenger-Mutant Dominant Class ---------------- Mutant | -10/Materials Mutant | -10/Mines Scavenger-Mutant | -9/Materials Mutant | -9/Storage Mutant | -9/Recycling Mutant | -9/Scraptown Hacker-Sprinter | -6/Factory Derelict-Sprinter | -6/Lower Caves Derelict-Sprinter | -6/Lower Caves Sprinter | -6/Data Miner Derelict-Sprinter | -5/Proximity Caves Hacker-Sprinter | -5/Factory Wizard-Sprinter | -5/Upper Caves Wizard-Sprinter | -5/Upper Caves Wizard-Sprinter | -5/Zhirov Hacker-Sprinter | -4/Proximity Caves Hacker-Sprinter | -4/Factory Hacker-Sprinter | -4/Extension Commander-Sprinter | -4/Cetus Commander-Sprinter | -4/Archives Commander-Sprinter | -4/Hub_04(d) Scavenger-Sprinter | -3/Research Hacker-Sprinter | -3/Quarantine Hacker-Sprinter | -3/Section 7 Alien-Sigix | -2/Research Alien-Sigix | -2/Testing Resources | -11 -10 -10 -9 -9 -9 -9 -6 -6 -6 -6 -5 -5 -5 -5 -5 -4 -4 -4 -4 -4 -4 -3 -3 -3 -2 -2 ----------- Run | Yrd Mat Min Mat Sto Rec Scr Fac Low Low Dat Pro Fac Upp Upp Zhi Pro Fac Ext Cet Arc Hub Res Qua Sec Res Tes Matter Collected 4821 | 270 194 497 120 90 30 90 68 301 26 . 35 . 59 89 301 63 . 607 260 100 60 12 696 664 . 189 Remotely . | . . . . . . . . . . . . . . . . . . . . . . . . . . . Salvage Created 4314 | 73 181 348 505 241 264 . 289 95 . 23 141 . . 22 301 . . . . 401 104 . 248 763 . 315 Parts 212 | 8 14 19 25 16 8 . 3 3 . 3 3 . . 1 3 . . . . 13 2 . 8 69 . 14 Haulers Intercepted 6 | . 1 . 3 . . . 2 . . . . . . . . . . . . . . . . . . . Recyclers Shooed 3 | . . . 1 . . . . . . . . . . . . . . . . . . . 1 1 . . Parts Field Recycled . | . . . . . . . . . . . . . . . . . . . . . . . . . . . Retrieved Matter . | . . . . . . . . . . . . . . . . . . . . . . . . . . . Parts Self-Destructed 6 | . . . . . . 2 . 2 . . . . . . 2 . . . . . . . . . . . Prevented 5 | . . . . . . 1 . 1 . . 3 . . . . . . . . . . . . . . . Parts Restored 1 | . . . . . . . . . . . . . . . . . . . . . . . 1 . . . Broken 1 | . . . . . . . . . . . . . . . . . . . . . . . 1 . . . Kills | -11 -10 -10 -9 -9 -9 -9 -6 -6 -6 -6 -5 -5 -5 -5 -5 -4 -4 -4 -4 -4 -4 -3 -3 -3 -2 -2 ------- Run | Yrd Mat Min Mat Sto Rec Scr Fac Low Low Dat Pro Fac Upp Upp Zhi Pro Fac Ext Cet Arc Hub Res Qua Sec Res Tes Combat Hostiles Destroyed 47 | . 6 6 7 3 . . . 4 . . 6 . . . . . . . . 1 2 . . 9 . 3 Melee 6 | . . . . . . . . 2 . . 2 . . . . . . . . . . . . 1 . 1 Guns 33 | . 6 6 7 1 . . . . . . . . . . . . . . . 1 2 . . 8 . 2 Cannons 2 | . . . . 2 . . . . . . . . . . . . . . . . . . . . . . Classes Destroyed 13 | 1 3 2 2 1 . . 1 . . . 1 . . . . . . . . . . . . 1 . 1 Worker 5 | . . . 1 1 . . . . . . . . . . . . . . . . . . . 1 . 2 Builder 9 | . . . . 5 . . . . . . . . . . . . . . . . . . . 3 . 1 Tunneler 3 | 3 . . . . . . . . . . . . . . . . . . . . . . . . . . Hauler 6 | . 1 . 3 . . . 2 . . . . . . . . . . . . . . . . . . . Recycler 11 | . . 2 1 . 4 . . . . . . . . . . . . . . . . . 2 1 . 1 Operator 11 | . . . . . . . 1 . . . . . . . . . . . . 9 . . . 1 . . Watcher 8 | . 3 . 1 . . . 2 . . . . . . . . . . . . . 1 . . 1 . . Swarmer 21 | . 6 2 3 . . . . 4 . . 5 . . . . . . . . . 1 . . . . . Cutter 3 | . . . . . . . . . . . . . . . . . . . . . . . . 3 . . Saboteur 2 | . . . . . . . . . . . . . . . . . . . . . . . . . . 2 Grunt 5 | . . 4 . . . . . . . . . . . . . . . . . . . . . . . 1 Sentry 8 | . . . 4 3 . . . . . . . . . . . . . . . 1 . . . . . . Programmer 8 | . . . . . . . . . . . 1 . . . . . . . . . 1 . . 6 . . Decomposer 2 | . . . . . . . . . . . . . . 2 . . . . . . . . . . . . Best Kill Streak 4 | 2 3 3 4 2 2 . 3 4 . 1 4 . . . . . . . . 4 1 . 1 4 . 3 Combat Bots Only 4 | . 3 2 4 2 . . . 4 . . 4 . . . . . . . . 1 1 . . 3 . 1 Max Kills in Single Turn 2 | 1 1 1 1 1 1 . 1 1 . 1 1 . . 1 . . . . . 1 1 . 1 2 . 1 Gunslinging . | . . . . . . . . . . . . . . . . . . . . . . . . . . . Exploded . | . . . . . . . . . . . . . . . . . . . . . . . . . . . Melee 1 | . . . . . . . . 1 . . 1 . . . . . . . . . . . . 1 . 1 Uniques/NPCs Destroyed 1 | . . . . . . . . . . 1 . . . . . . . . . . . . . . . . Data Miner (-6/Data Miner) Combat | -11 -10 -10 -9 -9 -9 -9 -6 -6 -6 -6 -5 -5 -5 -5 -5 -4 -4 -4 -4 -4 -4 -3 -3 -3 -2 -2 -------- Run | Yrd Mat Min Mat Sto Rec Scr Fac Low Low Dat Pro Fac Upp Upp Zhi Pro Fac Ext Cet Arc Hub Res Qua Sec Res Tes Hostile Shots Fired 1254 | . 32 25 37 10 . 80 19 30 . 3 78 18 21 . . 5 . 84 24 . 28 3 65 308 13 371 Missed 561 | . 11 10 11 5 . 31 10 20 . 2 35 12 15 . . 4 . 42 15 . 6 1 34 156 4 137 Hits 693 | . 21 15 26 5 . 49 9 10 . 1 43 6 6 . . 1 . 42 9 . 22 2 31 152 9 234 Melee 8 | . . . . . . . . . . . . . . . . . . 2 . . . . . 2 . 4 Projectile 685 | . 21 15 26 5 . 49 9 10 . 1 43 6 6 . . 1 . 40 9 . 22 2 31 150 9 230 AOE 4 | . . . . . . . . . . . . . . . . . . . . . 1 . . 2 . 1 Critical Strikes 38 | . . . 1 . . 1 . . . . . . . . . 1 . 6 2 . 3 . 2 9 1 12 Actively Blocked 3 | . . . . . . . . . . . . . . . . 1 . 2 . . . . . . . . Part Disruptions 4 | . . . . . . . . . . . . . . . . . . . . . 1 . . 3 . . Damage Taken 11208 | . 459 145 303 54 . 442 89 126 . 45 709 124 96 . . 18 . 945 243 . 776 115 771 3004 67 2677 Core 2276 | . 27 49 42 . . 285 23 9 . . 156 . 13 . . . . 170 43 . 62 . 109 412 19 857 Absorbed by Shields 492 | . 9 34 39 19 . 85 . . . . . . . . . . . 56 103 . . . . . . 147 Redirected to Core 63 | . . . . . . . . . . . . . . . . . . . . . . . 63 . . . Redirected to Shielding 249 | . . . . . . . . . . . . . . . . 16 . 226 . . . . . 7 . . Ignored by Resistances 3631 | . . . . . . . . 31 . . . . . . . . . . . . . . . 600 73 2927 Regen/Repaired (Parts) 418 | . 57 . . . . . . . . . . . . . . . . . . . . . . 326 . 35 Core Remaining (%) 67 | 100 . 69 . . . 18 . . . . 77 . . . . 98 . . . . 68 . . 42 . . Volleys Fired 394 | 9 19 14 27 18 1 4 . . . . . 6 . 7 16 . . 1 13 56 16 2 77 55 19 34 Largest 2 | 2 2 2 2 2 1 1 . . . . . 2 . 2 1 . . 1 2 2 2 1 1 2 2 2 Hottest 240 | 100 100 140 150 143 75 75 . . . . . 98 . 176 88 . . 5 160 160 240 240 240 200 200 200 Shots Fired 491 | 12 25 24 50 25 1 4 . . . . . 7 . 8 16 . . 1 18 60 26 2 77 72 23 40 Gun 364 | 12 25 24 50 11 . . . . . . . 2 . 8 16 . . . 10 60 26 2 10 45 23 40 Cannon 121 | . . . . 14 1 3 . . . . . 5 . . . . . . 8 . . . 63 27 . . Launcher . | . . . . . . . . . . . . . . . . . . . . . . . . . . . Special 6 | . . . . . . 1 . . . . . . . . . . . 1 . . . . 4 . . . Kinetic 4 | . . . . . . . . . . . . 4 . . . . . . . . . . . . . . Thermal 374 | 12 25 24 50 25 1 4 . . . . . 3 . 8 16 . . . 18 60 26 2 73 27 . . Explosive . | . . . . . . . . . . . . . . . . . . . . . . . . . . . Electromagnetic . | . . . . . . . . . . . . . . . . . . . . . . . . . . . Slashing 108 | . . . . . . . . . . . . . . . . . . . . . . . . 45 23 40 Robot Hit Streak 14 | 3 10 12 4 5 . . . . . . . . . 4 12 . . 3 14 8 3 . 13 4 . 7 Robot Miss Streak 5 | 1 3 2 5 1 . . . . . . . . . 1 1 . . . 1 2 3 . 1 5 . 5 Penetration Max 1 | . . . . . . . . . . . . . . . . . . . . . . . . 1 . 1 Secondary Targets 1 | . . . . . . . . . . . . . . . . . . . . . . . . 1 . . Max Gunslinging Chain 1 | . . . . . . . . . . . . . . . . . . . . . . . . 1 . . Shots Hit Robots 297 | 8 16 15 24 16 5 . 5 4 . 1 12 . . 6 19 . . 38 15 45 9 . 15 29 . 15 Core Hits 102 | 3 9 9 13 3 2 . 1 . . 1 . . . 2 6 . . . 6 17 4 . 3 16 . 7 Critical Kills 1 | . . . . . . . . . . . . . . . 1 . . . . . . . . . . . Critical Parts Destroyed 11 | . 1 . . 2 2 . . 2 . . 2 . . 1 . . . . . 1 . . . . . . Critical Strikes 18 | . 2 . 1 3 2 . . 2 . . 2 . . 1 1 . . 1 . 1 . . . 1 . 1 Burn 3 | . 1 . 1 1 . . . . . . . . . . . . . . . . . . . . . . Destroy 2 | . . . . . . . . . . . . . . 1 1 . . . . . . . . . . . Smash 10 | . 1 . . 2 2 . . 2 . . 2 . . . . . . . . 1 . . . . . . Sever 3 | . . . . . . . . . . . . . . . . . . 1 . . . . . 1 . 1 Melee Attacks 193 | . 12 . . 20 6 1 10 8 3 25 23 . . . 5 . . 38 . 3 . . . 39 . . Impact 110 | . 12 . . 20 6 . 10 8 3 25 23 . . . . . . . . 3 . . . . . . Slashing 42 | . . . . . . 1 . . . . . . . . . . . 2 . . . . . 39 . . Piercing . | . . . . . . . . . . . . . . . . . . . . . . . . . . . Sneak Attacks 63 | . 1 . . 7 5 . 2 . . 1 . . . . 3 . . 36 . 3 . . . 5 . . Combat Hostiles . | . . . . . . . . . . . . . . . . . . . . . . . . . . . Follow-up Attacks . | . . . . . . . . . . . . . . . . . . . . . . . . . . . Damage Inflicted 11362 | 99 292 261 532 704 430 . 393 235 . 94 663 . . 162 438 . . 53 479 1614 244 . 409 3002 . 1258 Guns 6366 | 99 185 261 516 100 . . . . . . . . . 162 438 . . . 238 1280 244 . . 1585 . 1258 Cannons 732 | . . . . 82 . . . . . . . . . . . . . . 241 . . . 409 . . . Explosions . | . . . . . . . . . . . . . . . . . . . . . . . . . . . Melee 4248 | . 107 . . 522 430 . 393 235 . 94 663 . . . . . . 53 . 334 . . . 1417 . . Ramming 16 | . . . 16 . . . . . . . . . . . . . . . . . . . . . . . Kinetic . | . . . . . . . . . . . . . . . . . . . . . . . . . . . Thermal 4255 | 99 185 261 516 182 . . . . . . . . . 162 438 . . . 479 1280 244 . 409 . . . Explosive . | . . . . . . . . . . . . . . . . . . . . . . . . . . . Electromagnetic . | . . . . . . . . . . . . . . . . . . . . . . . . . . . Impact 2778 | . 107 . . 522 430 . 393 235 . 94 663 . . . . . . . . 334 . . . . . . Slashing 4313 | . . . . . . . . . . . . . . . . . . 53 . . . . . 3002 . 1258 Piercing . | . . . . . . . . . . . . . . . . . . . . . . . . . . . Highest Corruption 11 | . 8 8 . . . . 1 . . . 2 . 1 1 1 1 . . . . 11 . 2 2 . . Average Corruption 3 | . 8 8 . . . . 1 . . . 1 . 1 1 1 1 . . . . 1 . 1 2 . . Corruption Purged 1 | . . . . . . . 1 . . . . . . . . . . . . . . . . . . . Corruption Blocked . | . . . . . . . . . . . . . . . . . . . . . . . . . . . Effects 101 | . 19 42 . . . . 2 . . . 1 . . 1 2 1 . . . . 7 . 9 17 . . Message Errors 25 | . 4 8 . . . . . . . . 1 . . 1 . . . . . . 5 . 5 1 . . Matter Fused 28 | . 7 10 . . . . 2 . . . . . . . 1 1 . . . . . . 3 4 . . Heat Flow Errors 6 | . 2 1 . . . . . . . . . . . . 1 . . . . . 1 . . 1 . . Energy Discharges 11 | . . 5 . . . . . . . . . . . . . . . . . . 1 . . 5 . . Parts Rejected 4 | . . 1 . . . . . . . . . . . . . . . . . . . . . 3 . . Parts Fused 2 | . . 1 . . . . . . . . . . . . . . . . . . . . . 1 . . Data Loss (minor) 14 | . 1 11 . . . . . . . . . . . . . . . . . . . . 1 1 . . Data Loss (major) 3 | . 2 1 . . . . . . . . . . . . . . . . . . . . . . . . Misfires 4 | . 1 3 . . . . . . . . . . . . . . . . . . . . . . . . Alerts 4 | . 2 1 . . . . . . . . . . . . . . . . . . . . . 1 . . Overload Shots 7 | . . . . . . . . . . . . . . . . . . . . . 2 2 3 . . . Overflow Damage 2121 | . 107 . . 370 179 . 261 135 . . 338 . . . . . . . . 253 . . 29 449 . . Projectiles 29 | . . . . . . . . . . . . . . . . . . . . . . . 29 . . . Explosions . | . . . . . . . . . . . . . . . . . . . . . . . . . . . Melee 2092 | . 107 . . 370 179 . 261 135 . . 338 . . . . . . . . 253 . . . 449 . . Knockbacks 11 | . . . . 3 1 . 1 1 . . 2 . . . . . . . . 3 . . . . . . Impact 11 | . . . . 3 1 . 1 1 . . 2 . . . . . . . . 3 . . . . . . Kinetic . | . . . . . . . . . . . . . . . . . . . . . . . . . . . Secondary . | . . . . . . . . . . . . . . . . . . . . . . . . . . . Self-Inflicted Damage . | . . . . . . . . . . . . . . . . . . . . . . . . . . . Shots . | . . . . . . . . . . . . . . . . . . . . . . . . . . . Rammed . | . . . . . . . . . . . . . . . . . . . . . . . . . . . Targets Rammed 1 | . . . 1 . . . . . . . . . . . . . . . . . . . . . . . Kicked 1 | . . . 1 . . . . . . . . . . . . . . . . . . . . . . . Crushed . | . . . . . . . . . . . . . . . . . . . . . . . . . . . Highest Temperature 346 | 78 241 210 117 66 . 54 . 7 . . . 66 . 138 168 . . 346 147 101 318 340 202 342 . 25 Average Temperature 56 | 28 55 60 33 26 . 30 . 7 . . . 20 . 63 50 . . 140 56 29 86 40 61 82 . 15 Received Heat Transfer 1651 | . . 60 93 12 . 143 9 . . . 27 27 . . . 9 . 538 . . . . 48 118 . 567 Effects 3 | . . . . . . . . . . . . . . . . . . . . . . 1 . 2 . . Shutdowns 2 | . . . . . . . . . . . . . . . . . . . . . . 1 . 1 . . Energy Bleed 1 | . . . . . . . . . . . . . . . . . . . . . . . . 1 . . Siege Activations . | . . . . . . . . . . . . . . . . . . . . . . . . . . . Martial Activations . | . . . . . . . . . . . . . . . . . . . . . . . . . . . Shielding Activations . | . . . . . . . . . . . . . . . . . . . . . . . . . . . Robots Disrupted . | . . . . . . . . . . . . . . . . . . . . . . . . . . . Combat Hostiles . | . . . . . . . . . . . . . . . . . . . . . . . . . . . Robots Corrupted 18 | . 1 . . 4 . . 4 2 . . 4 . . . . . . . . 3 . . . . . . Combat Hostiles 6 | . . . . . . . . 2 . . 4 . . . . . . . . . . . . . . . Parts Fried 26 | . 2 . . 9 . . 4 2 . . 4 . . . . . . . . 5 . . . . . . Impact Corruptions 57 | . 3 . . 17 3 . 8 5 . . 12 . . . . . . . . 9 . . . . . . Robots Melted . | . . . . . . . . . . . . . . . . . . . . . . . . . . . Combat Hostiles . | . . . . . . . . . . . . . . . . . . . . . . . . . . . Parts Melted 6 | 1 . 1 4 . . . . . . . . . . . . . . . . . . . . . . . Heat Transferred 6697 | 296 629 592 999 407 . . . . . . . . . 222 592 . . . 592 1591 333 . 444 . . . Parts Sabotaged . | . . . . . . . . . . . . . . . . . . . . . . . . . . . Parts Stolen . | . . . . . . . . . . . . . . . . . . . . . . . . . . . Parts Stripped . | . . . . . . . . . . . . . . . . . . . . . . . . . . . Power Chain Reactions . | . . . . . . . . . . . . . . . . . . . . . . . . . . . Alert | -11 -10 -10 -9 -9 -9 -9 -6 -6 -6 -6 -5 -5 -5 -5 -5 -4 -4 -4 -4 -4 -4 -3 -3 -3 -2 -2 ------- Run | Yrd Mat Min Mat Sto Rec Scr Fac Low Low Dat Pro Fac Upp Upp Zhi Pro Fac Ext Cet Arc Hub Res Qua Sec Res Tes Maximum Alert Level 5 | . . . . . . . . . . . . . . . . . . 1 1 1 2 1 1 5 4 5 Low Security (%) 81 | 100 100 100 100 100 100 . 100 . . . . 100 . . . . 100 84 79 20 28 47 92 78 . . Level 1 9 | . . . . . . . . . . . . . . . . . . 15 20 79 67 52 7 . . . Level 2 2 | . . . . . . . . . . . . . . . . . . . . . 4 . . . . 52 Level 3 1 | . . . . . . . . . . . . . . . . . . . . . . . . . 71 . Level 4 . | . . . . . . . . . . . . . . . . . . . . . . . . . 28 . Level 5 . | . . . . . . . . . . . . . . . . . . . . . . . . . . . High Security . | . . . . . . . . . . . . . . . . . . . . . . . . . . . Max Security 4 | . . . . . . . . . . . . . . . . . . . . . . . . 21 . 47 Peak Influence 1928 | 10 103 85 147 51 97 . 105 . . . . 78 . . . . 122 221 224 232 462 237 223 1928 1109 1882 Initial 1100 | . 3 1 . 43 . . . . . . . 24 . . . . . 59 98 75 71 173 114 42 1100 609 Average 174 | 1 14 12 64 12 24 . 53 . . . . 13 . . . . 31 95 162 197 278 198 107 408 1093 1143 Influence Increases 6784 | 15 263 195 311 151 231 45 286 150 . 20 275 127 . . 15 . 196 766 376 309 749 181 695 872 125 431 Destroy 0b10 Robot/C 1600 | . 120 140 140 60 . . . 80 . 20 120 . . . . . . 200 160 80 240 . . 180 . 60 Destroy 0b10 Robot/NC 300 | 15 20 10 30 30 20 . 25 . . . . . . . 15 . . . 10 45 15 . 10 35 . 20 Destroy Leader 288 | . 28 20 58 30 . . 8 10 . . 20 . . . . . . . . . 72 . . 42 . . Allied During Kill 619 | . . 10 . . . . . . . . . . . . . . . 78 169 125 237 . . . . . Trap Triggered on 0b10 10 | . . . . . . . . . . . . . . . . . 10 . . . . . . . . . Successful Hack 444 | . 24 . 21 5 29 . 32 . . . . . . . . . 16 60 12 . 14 34 122 28 8 39 Select Force Hacks 180 | . . . . . 180 . . . . . . . . . . . . . . . . . . . . . Disable Machine 630 | . 15 15 15 15 . . 30 . . . . . . . . . 15 60 15 45 75 . 90 150 . 90 Destroy Structure 723 | . 11 . 2 11 2 . 11 . . . . 22 . . . . 80 68 10 14 66 42 88 62 117 117 Partial Spotted 375 | . . . . . . . 30 . . . . 15 . . . . 60 45 . . 15 105 30 75 . . Lose Combat Pursuer 1515 | . 45 . 45 . . 45 150 60 . . 135 90 . . . . 15 255 . . 15 . 255 300 . 105 Miscellaneous 100 | . . . . . . . . . . . . . . . . . . . . . . . 100 . . . Influence Decreases 7470 | 10 263 200 207 255 174 91 192 150 105 20 236 96 70 . 15 . 74 711 365 293 623 307 823 570 984 636 Entered New Map 2226 | . 2 4 . 61 . 57 11 40 21 . . 15 26 . . . . 63 79 113 133 157 90 34 844 476 Time Decay 3760 | 10 258 183 207 194 174 6 171 90 84 20 136 81 34 . 15 . 64 268 206 160 270 130 402 327 120 150 Search Patrol Dispatched 100 | . . . . . . . . . . . . . . . . . . . . . . . 100 . . . Lost Part 353 | . 3 . . . . 28 . 20 . . 100 . 10 . . . . 30 . . 30 20 20 82 . 10 Lost Ally 703 | . . 13 . . . . 10 . . . . . . . . . 10 350 80 20 190 . 10 . 20 . Purge Threat 328 | . . . . . . . . . . . . . . . . . . . . . . . 201 127 . . Squads Dispatched 61 | . . 1 . 1 . . 2 . . . . 2 . . . . 1 . . . 7 1 7 17 1 21 Investigation 4 | . . 1 . . . . . . . . . . . . . . . . . . . . 2 1 . . Extermination 15 | . . . . . . . 1 . . . . 1 . . . . 1 . . . 3 1 4 3 1 . Reinforcement 7 | . . . . 1 . . 1 . . . . 1 . . . . . . . . 1 . 1 1 . 1 Assault 32 | . . . . . . . . . . . . . . . . . . . . . . . . 12 . 20 Garrison 3 | . . . . . . . . . . . . . . . . . . . . . 3 . . . . . Intercept . | . . . . . . . . . . . . . . . . . . . . . . . . . . . Searches Triggered 1 | . . . . . . . . . . . . . . . . . . . . . . . 1 . . . Construction Impeded . | . . . . . . . . . . . . . . . . . . . . . . . . . . . Haulers Reinforced 1 | . . . . . . . . . . . . . . . . . . . . . 1 . . . . . Active Scanning Responses . | . . . . . . . . . . . . . . . . . . . . . . . . . . . Cargo Convoy Interrupts . | . . . . . . . . . . . . . . . . . . . . . . . . . . . Stealth | -11 -10 -10 -9 -9 -9 -9 -6 -6 -6 -6 -5 -5 -5 -5 -5 -4 -4 -4 -4 -4 -4 -3 -3 -3 -2 -2 --------- Run | Yrd Mat Min Mat Sto Rec Scr Fac Low Low Dat Pro Fac Upp Upp Zhi Pro Fac Ext Cet Arc Hub Res Qua Sec Res Tes Distress Signals 14 | . . . 2 . . . 2 . . . . . . . . . 2 1 2 . 2 . . 2 . 1 Communications Jammed 123 | . . . . . . . . . . . . . . . . . . . . . . . 4 53 . 66 Distress Signals 90 | . . . . . . . . . . . . . . . . . . . . . . . . 24 . 66 Times Spotted 423 | . 16 7 15 4 . 27 17 6 . 4 16 13 9 . . 4 6 37 10 17 31 1 26 67 2 88 Peak Tracking Total 34 | . 3 3 4 2 . 33 5 8 . 4 6 6 9 . . 4 4 9 5 2 10 1 7 10 3 34 Tactical Retreats 54 | . 2 . 1 . . 5 6 1 . . 5 2 . . . . 1 6 . . 4 . 8 10 . 3 ECM-based Alert Blocks 7 | . . . . . . . . . . . . . . . . . . . . . 7 . . . . . Traps | -11 -10 -10 -9 -9 -9 -9 -6 -6 -6 -6 -5 -5 -5 -5 -5 -4 -4 -4 -4 -4 -4 -3 -3 -3 -2 -2 ------- Run | Yrd Mat Min Mat Sto Rec Scr Fac Low Low Dat Pro Fac Upp Upp Zhi Pro Fac Ext Cet Arc Hub Res Qua Sec Res Tes Traps Triggered 9 | . . . . . . . 1 . . . . . . . . . . 3 . . . 2 2 . . 1 Indirectly . | . . . . . . . . . . . . . . . . . . . . . . . . . . . Trap Hack Attempts . | . . . . . . . . . . . . . . . . . . . . . . . . . . . Triggered . | . . . . . . . . . . . . . . . . . . . . . . . . . . . Disarmed . | . . . . . . . . . . . . . . . . . . . . . . . . . . . Reprogrammed 5 | . . . . . . . . . . . . . . . . . 5 . . . . . . . . . Reused 1 | . . . . . . . . . . . . . . . . . 1 . . . . . . . . . Traps Extracted . | . . . . . . . . . . . . . . . . . . . . . . . . . . . Installed . | . . . . . . . . . . . . . . . . . . . . . . . . . . . Triggered 1 | . . . . . . . . . . . . . . . . . 1 . . . . . . . . . Machines | -11 -10 -10 -9 -9 -9 -9 -6 -6 -6 -6 -5 -5 -5 -5 -5 -4 -4 -4 -4 -4 -4 -3 -3 -3 -2 -2 ---------- Run | Yrd Mat Min Mat Sto Rec Scr Fac Low Low Dat Pro Fac Upp Upp Zhi Pro Fac Ext Cet Arc Hub Res Qua Sec Res Tes Machines Disabled 49 | . 1 1 1 1 . 2 2 . . 1 . . . . . . 1 4 1 3 5 . 6 12 . 8 Max in Single Turn 1 | . 1 1 1 1 . 1 1 . . 1 . . . . . . 1 1 1 1 1 . 1 1 . 1 Garrison Access 5 | . . . . . . . 2 . . . . . . . . . . . . . 1 . 1 1 . . Network Hub 1 | . . . . . . . . . . . . . . . . . . . . . 1 . . . . . Machines Repaired . | . . . . . . . . . . . . . . . . . . . . . . . . . . . Machines Dismantled . | . . . . . . . . . . . . . . . . . . . . . . . . . . . Machines Sabotaged . | . . . . . . . . . . . . . . . . . . . . . . . . . . . Overloaded Fab Kills . | . . . . . . . . . . . . . . . . . . . . . . . . . . . Hacking | -11 -10 -10 -9 -9 -9 -9 -6 -6 -6 -6 -5 -5 -5 -5 -5 -4 -4 -4 -4 -4 -4 -3 -3 -3 -2 -2 --------- Run | Yrd Mat Min Mat Sto Rec Scr Fac Low Low Dat Pro Fac Upp Upp Zhi Pro Fac Ext Cet Arc Hub Res Qua Sec Res Tes Machines Accessed 118 | . 8 2 3 3 12 . 11 . 1 4 . 5 1 1 4 . 4 12 3 . 4 7 15 9 2 7 Terminals 73 | . 7 . 2 3 6 . 5 . . . . 2 . . . . 3 11 3 . 3 4 10 7 1 6 Fabricators 6 | . . . . . . . 3 . . . . 1 . . . . 1 . . . . 1 . . . . Repair Stations 5 | . 1 . . . . . . . . . . 1 . . . . . . . . . . 2 1 . . Recycling Units 7 | . . . . . 6 . . . . . . . . . . . . 1 . . . . . . . . Scanalyzers 7 | . . . 1 . . . 1 . . . . 1 . . . . . . . . . 1 2 . . 1 Garrison Access 7 | . . . . . . . 2 . . . . . . . . . . . . . 1 1 1 1 1 . Total Hacks 433 | . 23 2 9 7 28 . 42 . 1 31 . 18 1 1 17 . 36 37 12 . 11 35 74 22 7 19 Successful 212 | . 17 2 5 5 18 . 17 . 1 31 . 6 1 1 17 . 14 18 4 . 4 4 30 9 2 6 Failed 220 | . 6 . 4 2 10 . 25 . . . . 12 . . . . 22 19 8 . 7 31 44 13 5 12 Catastrophic 36 | . . . . . 1 . 3 . . . . 1 . . . . 2 4 2 . 1 6 9 3 1 3 Database Lockouts 1 | . . . . . . . . . . . . . . . . . . . . . . . . . . 1 Manual 180 | . 18 . 5 4 25 . 24 . . . . 2 . . . . 23 16 1 . 4 11 25 5 4 13 Terminals 277 | . 20 . 6 7 21 . 22 . . . . 3 . . . . 35 33 12 . 8 16 56 16 4 18 Fabricators 22 | . . . . . . . 8 . . . . 1 . . . . 1 . . . . 12 . . . . Repair Stations 22 | . 3 . . . . . . . . . . 7 . . . . . . . . . . 8 4 . . Recycling Units 11 | . . . . . 7 . . . . . . . . . . . . 4 . . . . . . . . Scanalyzers 30 | . . . 3 . . . 7 . . . . 7 . . . . . . . . . 3 9 . . 1 Garrison Access 18 | . . . . . . . 5 . . . . . . . . . . . . . 3 4 1 2 3 . Terminal Hacks 119 | . 4 2 1 3 3 . 4 . 1 31 . 1 1 1 17 . 10 9 4 . 1 2 16 5 1 2 Record 22 | . . . . . . . . . . 11 . . . . 5 . 2 . 4 . . . . . . . Part Schematic 16 | . . . . . . . . . . 12 . . . . 4 . . . . . . . . . . . Robot Schematic 5 | . . . . . . . . . . 5 . . . . . . . . . . . . . . . . Robot Analysis 7 | . 1 . . . 1 . . . . . . . . . 4 . . 1 . . . . . . . . Prototype ID Bank 13 | . 1 . 1 1 1 . . . . 3 . . . . 4 . . 1 . . . . 1 . . . Open Door 14 | . . 2 . 1 . . . . 1 . . . 1 1 . . . 5 . . . 1 . 1 . 1 Branch Access Points 4 | . . . . . . . 1 . . . . . . . . . 1 . . . . . 1 . 1 . Emergency Access Points 1 | . . . . . . . . . . . . . . . . . 1 . . . . . . . . . Terminal Index 5 | . 1 . . . 1 . 1 . . . . . . . . . 1 . . . . . 1 . . . Fabricator Index 1 | . . . . . . . . . . . . . . . . . . . . . . . 1 . . . Alert Level 3 | . . . . . . . . . . . . . . . . . . 1 . . . . 1 1 . . Unreport Threat 4 | . . . . . . . . . . . . . . . . . . . . . . . 3 1 . . Locate Traps 4 | . . . . . . . 2 . . . . . . . . . 1 . . . . . 1 . . . Reprogram Traps 1 | . . . . . . . . . . . . . . . . . 1 . . . . . . . . . Extermination Status 1 | . . . . . . . . . . . . . . . . . 1 . . . . . . . . . Reinforcement Status 1 | . . . . . . . . . . . . . . . . . . . . . . . . 1 . . Recall Investigation 1 | . . . . . . . . . . . . . . . . . . . . . . . 1 . . . Recall Extermination 3 | . . . . . . . . . . . . . . . . . . . . . . . 2 1 . . Hauler Manifests 1 | . . . . . . . . . . . . . . . . . . . . . . 1 . . . . Registered Components 1 | . . . . . . . . . . . . . . . . . . . . . . . . . . 1 Registered Prototypes 1 | . . . . . . . . . . . . . . . . . . . . . . . 1 . . . Zone Layout 10 | . 1 . . 1 . . . . . . . 1 . . . . 2 1 . . 1 . 3 . . . Fabricator Hacks 4 | . . . . . . . 2 . . . . 1 . . . . . . . . . 1 . . . . Network Status 2 | . . . . . . . 1 . . . . 1 . . . . . . . . . . . . . . Build 2 | . . . . . . . 1 . . . . . . . . . . . . . . 1 . . . . Repair Station Hacks 8 | . 2 . . . . . . . . . . 1 . . . . . . . . . . 3 2 . . Scan Component 5 | . 1 . . . . . . . . . . . . . . . . . . . . . 3 1 . . Repair 2 | . 1 . . . . . . . . . . . . . . . . . . . . . . 1 . . Refit 1 | . . . . . . . . . . . . 1 . . . . . . . . . . . . . . Recycling Unit Hacks 2 | . . . . . . . . . . . . . . . . . . 2 . . . . . . . . Report Inventory 1 | . . . . . . . . . . . . . . . . . . 1 . . . . . . . . Retrieve Components 1 | . . . . . . . . . . . . . . . . . . 1 . . . . . . . . Scanalyzer 15 | . . . 1 . . . 3 . . . . 3 . . . . . . . . . . 7 . . 1 Insert Component 1 | . . . . . . . . . . . . . . . . . . . . . . . 1 . . . Analyze 1 | . . . . . . . . . . . . . . . . . . . . . . . 1 . . . Retrieve Study 13 | . . . 1 . . . 3 . . . . 3 . . . . . . . . . . 5 . . 1 Garrison Access Hacks 5 | . . . . . . . 2 . . . . . . . . . . . . . 1 . 1 1 . . Seal Access 5 | . . . . . . . 2 . . . . . . . . . . . . . 1 . 1 1 . . Unauthorized Hacks 59 | . 11 . 3 2 15 . 6 . . . . . . . . . 4 7 . . 2 1 3 1 1 3 Terminals 53 | . 11 . 3 2 9 . 6 . . . . . . . . . 4 7 . . 2 1 3 1 1 3 Track 4 | . 1 . . . . . . . . . . . . . . . 1 2 . . . . . . . . Assimilate 7 | . 1 . . . . . 1 . . . . . . . . . 1 1 . . 1 . 1 1 . . Botnet 25 | . 3 . 2 2 4 . 3 . . . . . . . . . 1 2 . . 1 1 2 . 1 3 Disrupt 1 | . . . . . . . . . . . . . . . . . . 1 . . . . . . . . Operators 2 | . 1 . . . . . . . . . . . . . . . . 1 . . . . . . . . Skim 14 | . 5 . 1 . 5 . 2 . . . . . . . . . 1 . . . . . . . . . Fabricators . | . . . . . . . . . . . . . . . . . . . . . . . . . . . Repair Stations . | . . . . . . . . . . . . . . . . . . . . . . . . . . . Recycling Units 6 | . . . . . 6 . . . . . . . . . . . . . . . . . . . . . Tunnel 6 | . . . . . 6 . . . . . . . . . . . . . . . . . . . . . Scanalyzers . | . . . . . . . . . . . . . . . . . . . . . . . . . . . Garrison Access . | . . . . . . . . . . . . . . . . . . . . . . . . . . . Data Cores Recovered 1 | . . . . . . . 1 . . . . . . . . . . . . . . . . . . . Used . | . . . . . . . . . . . . . . . . . . . . . . . . . . . Hacking Detections 72 | . 6 . 3 2 5 . 10 . . . . 4 . . . . 4 8 2 . 3 7 9 3 1 5 Full Trace Events . | . . . . . . . . . . . . . . . . . . . . . . . . . . . Feedback Events . | . . . . . . . . . . . . . . . . . . . . . . . . . . . Feedback Blocked . | . . . . . . . . . . . . . . . . . . . . . . . . . . . Robot Schematics Acquired 5 | . . . . . . . . . . 5 . . . . . . . . . . . . . . . . Robots Built . | . . . . . . . . . . . . . . . . . . . . . . . . . . . Authchips . | . . . . . . . . . . . . . . . . . . . . . . . . . . . Time . | . . . . . . . . . . . . . . . . . . . . . . . . . . . Total Robot Build Rating . | . . . . . . . . . . . . . . . . . . . . . . . . . . . Part Schematics Acquired 17 | . . . . . . . . . . 12 . . . . 4 . . . . . . . 1 . . . Parts Built 2 | . . . . . . . 2 . . . . . . . . . . . . . . . . . . . Authchips . | . . . . . . . . . . . . . . . . . . . . . . . . . . . Time 192 | . . . . . . . 128 . . . . . . . . . . . . . . 64 . . . . Total Part Build Rating 16 | . . . . . . . 16 . . . . . . . . . . . . . . . . . . . Part Studies Acquired 13 | . . . 1 . . . 3 . . . . 3 . . . . . . . . . . 5 . . 1 Parts Repaired 2 | . 1 . . . . . . . . . . . . . . . . . . . . . . 1 . . Time 76 | . 32 . . . . . . . . . . . . . . . . . . . . . . 44 . . Parts Recycled . | . . . . . . . . . . . . . . . . . . . . . . . . . . . Recycled Matter . | . . . . . . . . . . . . . . . . . . . . . . . . . . . Retrieved Matter . | . . . . . . . . . . . . . . . . . . . . . . . . . . . Retrieved Components 3 | . . . . . . . . . . . . . . . . . . 3 . . . . . . . . Parts Scanalyzed 1 | . . . . . . . . . . . . . . . . . . . . . . . 1 . . . Part Schematics Acquired 1 | . . . . . . . . . . . . . . . . . . . . . . . 1 . . . Parts Damaged . | . . . . . . . . . . . . . . . . . . . . . . . . . . . Bothacking | -11 -10 -10 -9 -9 -9 -9 -6 -6 -6 -6 -5 -5 -5 -5 -5 -4 -4 -4 -4 -4 -4 -3 -3 -3 -2 -2 ------------ Run | Yrd Mat Min Mat Sto Rec Scr Fac Low Low Dat Pro Fac Upp Upp Zhi Pro Fac Ext Cet Arc Hub Res Qua Sec Res Tes Used RIF Installer . | . . . . . . . . . . . . . . . . . . . . . . . . . . . Robots Hacked 7 | . . . . . . . . . . . . . . . 3 . . 1 . . . . 3 . . . Non-combat 3 | . . . . . . . . . . . . . . . . . . . . . . . 3 . . . Combat 4 | . . . . . . . . . . . . . . . 3 . . 1 . . . . . . . . Robot Hacks Applied 7 | . . . . . . . . . . . . . . . 3 . . 1 . . . . 3 . . . parse_system 7 | . . . . . . . . . . . . . . . 3 . . 1 . . . . 3 . . . Relay Couplers Released 4 | . . . . . . . . . . . . . . . . . . . . . 4 . . . . . Programmers 4 | . . . . . . . . . . . . . . . . . . . . . 4 . . . . . Fabnet Peak Effective % . | . . . . . . . . . . . . . . . . . . . . . . . . . . . Robots Rewired 19 | . . . . . . . . . . . . . . . . . . 19 . . . . . . . . Allies Hacked 1 | . . . . . . . . . . . . . . . . . . . . . 1 . . . . . Hacks Repelled . | . . . . . . . . . . . . . . . . . . . . . . . . . . . Allies | -11 -10 -10 -9 -9 -9 -9 -6 -6 -6 -6 -5 -5 -5 -5 -5 -4 -4 -4 -4 -4 -4 -3 -3 -3 -2 -2 -------- Run | Yrd Mat Min Mat Sto Rec Scr Fac Low Low Dat Pro Fac Upp Upp Zhi Pro Fac Ext Cet Arc Hub Res Qua Sec Res Tes Total Allies 50 | . 1 2 . . . . 1 . . . . . . . . . 1 30 5 . 1 . 1 1 7 . Largest Group 14 | . 1 2 1 . . . 1 . . . . . . . . . 1 12 14 12 9 . 1 . 7 . Highest-Rated Group 992 | . 10 49 18 . . . 10 . . . . . . . . . 10 650 992 888 606 . 26 . 101 . Highest-Rated Ally 159 | . 10 31 18 . . . 10 . . . . . . . . . 10 159 159 159 96 . 26 . 15 . Total Orders 28 | . . . . . . . . . . . . . . . . 11 1 . 6 2 8 . . . . . STAY 7 | . . . . . . . . . . . . . . . . . . . 1 1 5 . . . . . FOLLOW 9 | . . . . . . . . . . . . . . . . . . . 5 1 3 . . . . . EXPLORE 8 | . . . . . . . . . . . . . . . . 7 1 . . . . . . . . . RETURN 4 | . . . . . . . . . . . . . . . . 4 . . . . . . . . . . Ally Attacks 232 | . . 12 . . . . . . . . . . . . . . . 63 69 29 59 . . . . . Total Damage 6457 | . . 127 . . . . . . . . . . . . . . . 1867 1689 1083 1691 . . . . . Kills 38 | . . 1 . . . . . . . . . . . . . . . 10 11 4 12 . . . . . Allies Corrupted . | . . . . . . . . . . . . . . . . . . . . . . . . . . . Allies Melted . | . . . . . . . . . . . . . . . . . . . . . . . . . . . Intel | -11 -10 -10 -9 -9 -9 -9 -6 -6 -6 -6 -5 -5 -5 -5 -5 -4 -4 -4 -4 -4 -4 -3 -3 -3 -2 -2 ------- Run | Yrd Mat Min Mat Sto Rec Scr Fac Low Low Dat Pro Fac Upp Upp Zhi Pro Fac Ext Cet Arc Hub Res Qua Sec Res Tes Active Infowar (turns) 10199 | 30 1313 424 180 1 . . 70 186 1590 128 539 . . 124 231 320 271 613 424 326 581 265 977 985 240 381 Optics 1 | . . . . . . . . . . . . . . . . . . . . . . . . . . 1 IFF 3696 | . . . . . . . 12 . . . . . . . . . 263 613 424 326 581 265 977 235 . . Terrain 2292 | . . . . 1 . . . 144 1590 21 535 . . . . . . . . . . . 1 . . . Seismic 1947 | 30 1313 424 180 . . . . . . . . . . . . . . . . . . . . . . . Decoding 1616 | . . . . . . . . . . . . . . 124 231 320 271 613 57 . . . . . . . Cloaking 3270 | . . . . . . . 58 186 1590 128 539 . . . . . . . . . . . . 491 236 42 Jamming 2219 | . . . . . . . . . . . . . . . . . . . . . . 141 579 879 240 380 ECM 132 | . . . . . . . . . . . . . . . . . . . 2 10 120 . . . . . Robot Analysis Total 7 | . 1 . . . 1 . . . . . . . . . 4 . . 1 . . . . . . . . Derelict Logs Recovered 7 | . . 2 . . . . . 1 2 . 1 . 1 . . . . . . . . . . . . . Drone Launches 7 | . . . . . . . . . . . . . . . . 6 1 . . . . . . . . . Drone Recoveries 4 | . . . . . . . . . . . . . . . . 4 . . . . . . . . . . Decoded 0b10 Intel 46 | . . . . . . . . . . . . . . . . . 13 33 . . . . . . . . Items 46 | . . . . . . . . . . . . . . . . . 13 33 . . . . . . . . Exploration | -11 -10 -10 -9 -9 -9 -9 -6 -6 -6 -6 -5 -5 -5 -5 -5 -4 -4 -4 -4 -4 -4 -3 -3 -3 -2 -2 ------------- Run | Yrd Mat Min Mat Sto Rec Scr Fac Low Low Dat Pro Fac Upp Upp Zhi Pro Fac Ext Cet Arc Hub Res Qua Sec Res Tes Turns Passed 17209 | 113 1418 1169 592 694 1458 2381 411 186 1590 128 626 299 83 150 231 320 271 613 424 326 581 267 1029 1032 240 577 Spaces Moved 18114 | 62 857 539 236 272 707 1213 941 445 616 140 598 534 266 378 280 508 706 1339 325 363 1005 837 1822 2019 523 583 Core 338 | 14 . . . . . 73 128 . . . 101 22 . . . . . . . . . . . . . . Treads . | . . . . . . . . . . . . . . . . . . . . . . . . . . . Legs 5227 | 48 857 539 236 272 707 1140 . . . . . . . . . . . . . . . . . 322 523 583 Wheels . | . . . . . . . . . . . . . . . . . . . . . . . . . . . Hover 105 | . . . . . . . . . . . . 105 . . . . . . . . . . . . . . Flight 12444 | . . . . . . . 813 445 616 140 497 407 266 378 280 508 706 1339 325 363 1005 837 1822 1697 . . Fastest Speed 12 | 50 120 120 196 203 203 50 28 28 28 28 28 28 28 28 28 28 23 19 21 21 12 13 13 19 30 30 Average Speed 60 | 116 120 201 202 203 203 193 32 28 28 28 33 37 28 28 28 28 23 23 21 21 23 19 23 24 30 62 Slowest Speed 260 | 190 190 260 203 203 203 203 50 31 28 28 114 76 28 28 28 28 28 106 140 21 26 23 27 30 30 90 Overloaded Moves 114 | . . . . . . . . . . . . . . . . . . 5 . . 35 17 39 18 . . Propulsion Burnouts . | . . . . . . . . . . . . . . . . . . . . . . . . . . . Robots Hopped 54 | . . . . . . . 6 . . . . 1 . . . . 1 7 . 6 10 . 12 11 . . Potential Cave-ins 19 | . . . . . . . . . . . . . . . . 2 1 7 . . . . . 9 . . Cave-ins Triggered 1 | . 1 . . . . . . . . . . . . . . . . . . . . . . . . . Teleports 7 | . . . . . . . . . . . . . . . . . . 1 . . . . . 3 . 3 Exploration Rate (%) 59 | 3 93 97 37 36 91 84 35 64 77 80 79 16 44 44 62 89 14 76 78 90 42 15 92 88 9 73 Regions Visited 26 Branch Regions 19 Pre-discovered Areas 14 | . . 1 . . 7 . . 1 1 1 . . . . 3 . . . . . . . . . . . Known Exits Taken 17 | . 1 1 1 . . . 1 1 1 1 1 1 . . . 1 1 1 . . 1 1 1 1 1 . Unknown Exits Taken 9 | 1 . . . 1 1 1 . . . . . . 1 1 1 . . . 1 1 . . . . . . Scrap Searched 19 | . . 1 . . . 4 . 6 3 . . . 1 2 . 2 . . . . . . . . . . Spaces Dug 305 | . 11 . . 10 2 9 11 4 3 . 12 11 . . 1 29 44 27 . . 13 28 34 22 23 11 Terrain Destroyed 401 | . 11 . . 10 2 3 11 4 3 . 12 15 . . 1 29 44 27 1 6 22 29 50 34 43 44 Melee 54 | . 11 . . 10 1 . 5 4 3 . 9 . . . . . . . . . . . . 11 . . Projectile 188 | . . . . . 1 . . . . . . 7 . . . . . . 1 6 11 2 50 23 43 44 AOE . | . . . . . . . . . . . . . . . . . . . . . . . . . . . Terrain Rammed . | . . . . . . . . . . . . . . . . . . . . . . . . . . . Walls Destroyed . | . . . . . . . . . . . . . . . . . . . . . . . . . . . Machines Disabled . | . . . . . . . . . . . . . . . . . . . . . . . . . . . Actions | -11 -10 -10 -9 -9 -9 -9 -6 -6 -6 -6 -5 -5 -5 -5 -5 -4 -4 -4 -4 -4 -4 -3 -3 -3 -2 -2 --------- Run | Yrd Mat Min Mat Sto Rec Scr Fac Low Low Dat Pro Fac Upp Upp Zhi Pro Fac Ext Cet Arc Hub Res Qua Sec Res Tes Total 23482 | 87 1197 599 300 347 717 1233 1009 486 2027 177 972 619 273 411 410 685 809 1624 660 537 1310 937 2326 2391 584 755 Wait 4028 | 8 279 4 14 23 . . 22 18 1406 6 349 29 1 20 70 175 93 123 296 110 286 50 337 196 37 76 Move 17985 | 61 856 538 235 271 706 1212 928 444 615 139 597 531 265 377 279 507 703 1324 324 350 986 836 1799 1997 522 583 Hop 49 | . . . . . . . 6 . . . . 1 . . . . 1 7 . 6 8 . 10 10 . . Pick Up 133 | 2 11 12 5 2 1 1 8 2 2 1 . 9 3 2 9 . 1 3 2 . 1 8 19 26 1 2 Fast Attach 105 | 7 1 2 . . . 3 15 1 . . . 14 . 1 4 . 3 7 3 . 3 6 11 20 1 3 Attach 46 | . 1 . 2 . . 2 1 1 . . . 4 2 . . . . 6 . . 1 4 5 14 1 2 Detach 23 | . . . . . . 1 . . . . . 2 . . 2 . . 4 1 . . . 5 5 . 3 Swap 248 | . 11 20 9 10 2 5 11 9 . 4 3 9 1 3 15 2 4 15 12 10 6 5 40 15 3 24 Drop 146 | . 7 9 7 3 1 4 8 3 1 2 . 14 1 1 10 1 4 4 9 2 3 11 23 14 . 4 Fire 394 | 9 19 14 27 18 1 4 . . . . . 6 . 7 16 . . 1 13 56 16 2 77 55 19 34 Melee 193 | . 12 . . 20 6 1 10 8 3 25 23 . . . 5 . . 38 . 3 . . . 39 . . Ram . | . . . . . . . . . . . . . . . . . . . . . . . . . . . Kick 1 | . . . 1 . . . . . . . . . . . . . . . . . . . . . . . Crush . | . . . . . . . . . . . . . . . . . . . . . . . . . . . Escape Stasis 77 | . . . . . . . . . . . . . . . . . . 38 . . . 15 . . . 24 Rewire 54 | . . . . . . . . . . . . . . . . . . 54 . . . . . . . . Trap . | . . . . . . . . . . . . . . . . . . . . . . . . . . . Miscellaneous . | . . . . . . . . . . . . . . . . . . . . . . . . . . . Route ------- -11/Scrapyard -10/Materials (discovered 6 exits: *Mat x3 / *Min x2 / Sub) -10/Mines (discovered 3 exits: *Mat x2 / *Sub) -9/Materials (discovered 2 exits: [*Mat] / *Sto) -9/Storage -9/Recycling (discovered 2 exits: [*Fac] / [*Scr]) -9/Scraptown (discovered 2 exits: *Fac x2) -6/Factory (discovered 3 exits: *Fac / *Low x2) -6/Lower Caves -6/Lower Caves (discovered 2 exits: *Fac / *Dat) -6/Data Miner -5/Proximity Caves -5/Factory (discovered 3 exits: Fac / *Upp x2) -5/Upper Caves -5/Upper Caves (discovered 2 exits: *Fac / *Zhi) -5/Zhirov -4/Proximity Caves -4/Factory (discovered 5 exits: Upp x2 / *Ext x2 / Arm) -4/Extension (discovered 2 exits: *Res / *Cet) -4/Cetus (discovered 2 exits: *Res / *Arc) -4/Archives (discovered 3 exits: *Res / *Hub x2) -4/Hub_04(d) -3/Research -3/Quarantine (discovered 3 exits: *Res / *Sec / *Frg) -3/Section 7 -2/Research -2/Testing (discovered 1 exit: [*Acc]) History --------- Turn | Location | Event 6 | -11/Scrapyard | Discovered new exit (range 16) 114 | -11/Scrapyard | Entered Materials 300 | -10/Materials | Build established: Mutant 349 | -10/Materials | Discovered new exit (range 16) 606 | -10/Materials | Discovered new exit (range 7) 677 | -10/Materials | Discovered new exit (range 10) 828 | -10/Materials | Identified exit to Mines 828 | -10/Materials | Identified exit to Subcaves 828 | -10/Materials | Identified exit to Materials 907 | -10/Materials | Crushed by falling debris 964 | -10/Materials | Learned 2 Mines zone layouts 1020 | -10/Materials | Learned 4 Recycling zone layouts 1058 | -10/Materials | Repaired Particle Gun 1065 | -10/Materials | Loaded intel: 38 machine locations 1119 | -10/Materials | Learned Storage trap positions 1185 | -10/Materials | Learned location of 2 exits from Subcaves 1532 | -10/Materials | Entered Mines 1690 | -10/Mines | Found the Drone Emporium 1695 | -10/Mines | Found Prototype Device 1695 | -10/Mines | Identified Splice Drone Bay 1729 | -10/Mines | Discovered exit to Subcaves (range 9) 1933 | -10/Mines | Learned location of Zion (-7) 2131 | -10/Mines | Met a Derelict shopkeep closing up shop 2701 | -10/Mines | Entered Materials 2701 | -9/Materials | Accompanied by 1 ally 2701 | -9/Materials | Evolved 2 slots: Propulsion x1, Utility x1 2702 | -9/Materials | Identified exit to Storage 2991 | -9/Materials | Build established: Scavenger-Mutant 3291 | -9/Materials | Discovered new exit (range 16) 3293 | -9/Materials | Entered Storage 3294 | -9/Storage | Loaded intel: 20 trap records 3526 | -9/Storage | Build established: Mutant 3594 | -9/Storage | Used back door to open Recycling access 3594 | -9/Storage | Discovered new exit (range 4) 3987 | -9/Storage | Entered Recycling 4510 | -9/Recycling | Discovered new exit (range 8) 4644 | -9/Recycling | Learned Storage machine intel 4766 | -9/Recycling | Learned 4 Recycling zone layouts 4813 | -9/Recycling | Learned location of Storage (-9) 4943 | -9/Recycling | Learned Materials emergency access door positions 5392 | -9/Recycling | Scanned before Scraplab entrance 5423 | -9/Recycling | Entered Scraplab 5439 | -9/Recycling | Discovered new exit (range 3) 5445 | -9/Recycling | Entered Scraptown 5468 | -9/Scraptown | Heard Great Nut preacher, LISTEN AND RECITE! 5767 | -9/Scraptown | Visited Assassins FH 5860 | -9/Scraptown | Visited Spacefarers 5947 | -9/Scraptown | Visited Cyclists 6189 | -9/Scraptown | Discovered new exit (range 11) 6495 | -9/Scraptown | Visited UFD Registry 6495 | -9/Scraptown | Registered with UFD as "Gammaplate" 6542 | -9/Scraptown | Visited Comm Corps 6629 | -9/Scraptown | Visited Red Mages 6759 | -9/Scraptown | Visited Chapter 10 6826 | -9/Scraptown | Visited Curators Association 6893 | -9/Scraptown | Visited Botcube Research 7009 | -9/Scraptown | Visited Junk Repository 7097 | -9/Scraptown | Visited Supply Room 7148 | -9/Scraptown | Visited Scrapoid Research Area 7201 | -9/Scraptown | Visited Derelict Rescue Squad 7268 | -9/Scraptown | Visited DA-N13 Charitable Foundation 7286 | -9/Scraptown | Found DCF Scrap (29 items) 7337 | -9/Scraptown | Visited Observation Area 7418 | -9/Scraptown | Visited LU-1G1's Boring Crew 7729 | -9/Scraptown | Attacked by Scraptown defenders 7776 | -9/Scraptown | Released all parts (8) 7793 | -9/Scraptown | Core integrity fell below 50% 7807 | -9/Scraptown | Lost 4 parts (1u3w) 7812 | -9/Scraptown | Found Prototype Special Weapon 7817 | -9/Scraptown | Identified LU-1G1's Laser Shovel 7821 | -9/Scraptown | Core integrity fell below 20% 7824 | -9/Scraptown | Discovered new exit (range 5) 7826 | -9/Scraptown | Entered Factory 7826 | -6/Factory | Evolved 6 slots: Power x1, Propulsion x2, Utility x3 8045 | -6/Factory | Fabricated Lgt. Particle Reactor? 8193 | -6/Factory | Discovered new exit (range 16) 8198 | -6/Factory | Identified exit to Factory 8218 | -6/Factory | Identified exit to Lower Caves 8237 | -6/Factory | Entered Lower Caves 8367 | -6/Lower Caves | Discovered new exit (range 12) 8423 | -6/Lower Caves | Identified exit to Lower Caves 8423 | -6/Lower Caves | Entered another Lower Caves area 8423 | -6/Lower Caves | Discovered exit to Factory (range 14) 8540 | -6/Lower Caves | Build established: Derelict-Sprinter 8975 | -6/Lower Caves | Encountered a Warlord checkpoint 9302 | -6/Lower Caves | Learned location of 1 exit from Factory 9413 | -6/Lower Caves | Discovered new exit (range 11) 10013 | -6/Lower Caves | Identified exit to Data Miner 10013 | -6/Lower Caves | Entered Data Miner 10013 | -6/Data Miner | Discovered new exit (range 6) 10019 | -6/Data Miner | Met Data Miner 10026 | -6/Data Miner | Learned location of Section 7 (-3) 10026 | -6/Data Miner | Acquired the access code to Warlord's prototype stash 10030 | -6/Data Miner | Received God Mode back door access code from Data Miner 10044 | -6/Data Miner | Destroyed Data Miner 10051 | -6/Data Miner | Found Prototype Hackware 10052 | -6/Data Miner | Data Conduit disabled 10139 | -6/Data Miner | Identified exit to Proximity Caves 10141 | -6/Data Miner | Entered Proximity Caves 10312 | -5/Proximity Caves | Spotted B-75 Beast 10441 | -5/Proximity Caves | Attracted the attention of an 0b10 checkpoint 10717 | -5/Proximity Caves | Released all parts (5) 10727 | -5/Proximity Caves | Learned location of 1 exit from Factory 10739 | -5/Proximity Caves | Lost 7 parts (1p2n3u1w) 10750 | -5/Proximity Caves | Discovered exit to Factory (range 8) 10767 | -5/Proximity Caves | Entered Factory 10767 | -5/Factory | Evolved 2 slots: Propulsion x1, Utility x1 10768 | -5/Factory | Identified exit to Factory 10768 | -5/Factory | Identified exit to Upper Caves 10779 | -5/Factory | Identified Quantum Router 11016 | -5/Factory | Found Imp. Powered Armor 11038 | -5/Factory | Discovered exit to Upper Caves (range 3) 11066 | -5/Factory | Entered Upper Caves 11132 | -5/Upper Caves | Ambushed by research squad 11136 | -5/Upper Caves | Learned Factory stockpile data 11145 | -5/Upper Caves | Discovered new exit (range 16) 11149 | -5/Upper Caves | Entered another Upper Caves area 11159 | -5/Upper Caves | Discovered exit to Factory (range 13) 11218 | -5/Upper Caves | Discovered new exit (range 15) 11299 | -5/Upper Caves | Entered Zhirov 11299 | -5/Zhirov | Discovered new exit (range 3) 11305 | -5/Zhirov | Met Zhirov 11310 | -5/Zhirov | Learned location of Quarantine (-3) 11310 | -5/Zhirov | Learned location of Testing (-2) 11310 | -5/Zhirov | Learned location of Command (-1) 11314 | -5/Zhirov | Zhirov requested help retrieving the SGEMP Prototype 11318 | -5/Zhirov | Found Alien Artifact 11318 | -5/Zhirov | Identified Integrated Reactor 11318 | -5/Zhirov | Installed Integrated Reactor, increased core energy generation (+10) 11383 | -5/Zhirov | Build established: Wizard-Sprinter 11519 | -5/Zhirov | Found Alien Artifact 11530 | -5/Zhirov | Entered Proximity Caves 11803 | -4/Proximity Caves | Build established: Hacker-Sprinter 11832 | -4/Proximity Caves | Attracted the attention of an 0b10 checkpoint 11843 | -4/Proximity Caves | Spotted B-86 Titan 11847 | -4/Proximity Caves | Discovered exit to Factory (range 12) 11850 | -4/Proximity Caves | Entered Factory 11850 | -4/Factory | Evolved 2 slots: Propulsion x1, Utility x1 12012 | -4/Factory | Watched by a mysterious "MATRIX" hacker 12031 | -4/Factory | Identified exit to Upper Caves 12031 | -4/Factory | Identified exit to Extension 12031 | -4/Factory | Identified exit to Armory 12121 | -4/Factory | Entered Extension 12223 | -4/Extension | Lost 4 allies 12270 | -4/Extension | Rescued a captive Derelict 12301 | -4/Extension | Rescued a captive Derelict 12302 | -4/Extension | Rescued a captive Derelict 12453 | -4/Extension | Lost 7 allies 12453 | -4/Extension | Spotted B-86 Titan 12454 | -4/Extension | Spotted B-86 Titan 12454 | -4/Extension | Identified Transdimensional Reconstructor 12454 | -4/Extension | Warped through subspace 12517 | -4/Extension | Rescued a captive Derelict 12518 | -4/Extension | Rescued a captive Derelict 12550 | -4/Extension | Rescued a captive Derelict 12570 | -4/Extension | Rescued a captive Derelict 12570 | -4/Extension | Rescued a captive Derelict 12606 | -4/Extension | Rescued A7 12617 | -4/Extension | Rescued a captive Derelict 12643 | -4/Extension | Discovered new exit (range 10) 12643 | -4/Extension | Discovered new exit (range 6) 12652 | -4/Extension | Identified exit to Research 12655 | -4/Extension | Identified exit to Cetus 12734 | -4/Extension | Entered Cetus 12734 | -4/Cetus | Accompanied by 12 allies (A7) 12739 | -4/Cetus | Acquired a Cetus Manufacturing Module code from A7 12744 | -4/Cetus | Spotted Cetus Guard 12749 | -4/Cetus | Allies destroyed Cetus Guard 12749 | -4/Cetus | Spotted Cetus Guard 12750 | -4/Cetus | Spotted Cetus Guard 12751 | -4/Cetus | Spotted Cetus Guard 12769 | -4/Cetus | Allies destroyed Cetus Guard 12772 | -4/Cetus | Allies destroyed Cetus Guard 12774 | -4/Cetus | Allies destroyed Cetus Guard 12804 | -4/Cetus | Lost 3 allies 12813 | -4/Cetus | Started Cetus Manufacturing Module 12826 | -4/Cetus | Escorted A7 to Cetus Mainframe 12838 | -4/Cetus | Manufactured an Enhanced Grunt 12863 | -4/Cetus | Manufactured an Enhanced Grunt 12888 | -4/Cetus | Manufactured an Enhanced Grunt 12913 | -4/Cetus | Manufactured an Enhanced Grunt 12938 | -4/Cetus | Manufactured an Enhanced Grunt 12983 | -4/Cetus | Discovered new exit (range 16) 13050 | -4/Cetus | Spotted Cetus Guard 13050 | -4/Cetus | Spotted Cetus Guard 13054 | -4/Cetus | Spotted Cetus Guard 13055 | -4/Cetus | Spotted Cetus Guard 13057 | -4/Cetus | Allies destroyed Cetus Guard 13057 | -4/Cetus | Allies destroyed Cetus Guard 13065 | -4/Cetus | Allies destroyed Cetus Guard 13077 | -4/Cetus | Allies destroyed Cetus Guard 13079 | -4/Cetus | Discovered exit to Research (range 16) 13081 | -4/Cetus | Met Revision 17 13158 | -4/Cetus | Entered Archives 13158 | -4/Archives | Accompanied by 12 allies (A7) 13163 | -4/Archives | Received a hacking code to weaken MAIN.C 13165 | -4/Archives | Build established: Commander-Sprinter 13218 | -4/Archives | Discovered exit to Research (range 15) 13221 | -4/Archives | Discovered new exit (range 15) 13224 | -4/Archives | Discovered new exit (range 16) 13226 | -4/Archives | Unable to access archive contents 13226 | -4/Archives | Unable to access archive contents 13226 | -4/Archives | Found Prototype Device 13226 | -4/Archives | Identified Exp. Thermal Shield 13484 | -4/Archives | Entered Hub_04(d) 13484 | -4/Hub_04(d) | Accompanied by 9 allies 13509 | -4/Hub_04(d) | Garrison activated, responded to threat 13803 | -4/Hub_04(d) | Spotted B-86 Titan 13852 | -4/Hub_04(d) | Discovered exit to Research (range 16) 13939 | -4/Hub_04(d) | Network Hub disabled 14038 | -4/Hub_04(d) | Spotted Lightning 14038 | -4/Hub_04(d) | Spotted Lightning 14050 | -4/Hub_04(d) | System corruption reached 10% 14051 | -4/Hub_04(d) | Spotted Lightning 14065 | -4/Hub_04(d) | Entered Research 14065 | -3/Research | Evolved 2 slots: Propulsion x1, Utility x1 14089 | -3/Research | Lost 3 parts (1n2u) 14132 | -3/Research | Found Prototype Processor 14132 | -3/Research | Identified Exp. Signal Interpreter 14152 | -3/Research | Spotted B-86 Titan 14265 | -3/Research | Revision forces began assault on 0b10 14289 | -3/Research | Discovered new exit (range 9) 14290 | -3/Research | Identified exit to Quarantine 14332 | -3/Research | Entered Quarantine 14396 | -3/Quarantine | Found Alien Artifact 14396 | -3/Quarantine | Identified Core Reset Matrix 14396 | -3/Quarantine | Used Core Reset Matrix 14400 | -3/Quarantine | Detected hypermatrix surge 14400 | -3/Quarantine | Sensed 17 artifacts in vicinity 14403 | -3/Quarantine | Found Prototype Launcher 14403 | -3/Quarantine | Identified Com. Tesla Bomb Launcher 14418 | -3/Quarantine | Found Unknown Launcher 14418 | -3/Quarantine | Identified Fusion Bomb Launcher 14536 | -3/Quarantine | Build established: Hacker-Sprinter 14598 | -3/Quarantine | Discovered new exit (range 17) 14611 | -3/Quarantine | Identified exit to Research 14656 | -3/Quarantine | Found Phase Armor 14817 | -3/Quarantine | Found Phase Redirector 14832 | -3/Quarantine | Search patrols dispatched 14886 | -3/Quarantine | Targeted by mysterious "MATRIX" hacker 14978 | -3/Quarantine | Cryocooling Duct disabled 14993 | -3/Quarantine | Ambient heat levels rising (+20) 14993 | -3/Quarantine | Non-combat units ordered to evacuate 15052 | -3/Quarantine | Found Subatomic Replicator 15091 | -3/Quarantine | Found Hpw. Transdimensional Reconstructor 15095 | -3/Quarantine | Found Transdimensional Reconstructor 15096 | -3/Quarantine | Found Hpw. Transdimensional Reconstructor 15097 | -3/Quarantine | Found Hpw. Transdimensional Reconstructor 15127 | -3/Quarantine | Found Sigix Broadsword 15172 | -3/Quarantine | Spotted Fortress 15188 | -3/Quarantine | Discovered new exit (range 6) 15188 | -3/Quarantine | Discovered new exit (range 7) 15188 | -3/Quarantine | Identified exit to Protoforge 15189 | -3/Quarantine | Identified exit to Section 7 15361 | -3/Quarantine | Entered Section 7 15362 | -3/Section 7 | Detected hypermatrix surge 15362 | -3/Section 7 | Sensed 25 artifacts in vicinity 15407 | -3/Section 7 | Repaired Cld. Nuclear Pulse Thruster 15447 | -3/Section 7 | Spotted S7 Guard 15451 | -3/Section 7 | Found Core Membrane 15451 | -3/Section 7 | Installed Core Membrane, gained immunity to corruption 15487 | -3/Section 7 | Found Integrated Dissipator 15702 | -3/Section 7 | Spotted S7 Guard 15745 | -3/Section 7 | Installed Integrated Dissipator, increased core heat dissipation (+20) 15779 | -3/Section 7 | Found Integrated Reactor 15779 | -3/Section 7 | Installed Integrated Reactor, increased core energy generation (+10) 15798 | -3/Section 7 | P-80 Master assimilated allied Administrator 8b 15840 | -3/Section 7 | Spotted B-86 Titan 15851 | -3/Section 7 | Found Integrated Reactor 15851 | -3/Section 7 | Installed Integrated Reactor, increased core energy generation (+10) 15852 | -3/Section 7 | Warped through subspace 15852 | -3/Section 7 | Spotted Alpha 7 15854 | -3/Section 7 | Spotted Alpha 7 15858 | -3/Section 7 | Spotted B-99 Colossus 15885 | -3/Section 7 | Found Matter Drive 15887 | -3/Section 7 | Found Hpw. Transdimensional Reconstructor 15889 | -3/Section 7 | Found Hpw. Transdimensional Reconstructor 15974 | -3/Section 7 | Found LRC Storage 15974 | -3/Section 7 | Installed LRC Storage, increased inventory capacity (+2) 15976 | -3/Section 7 | Found LRC Energy Well 15976 | -3/Section 7 | Installed LRC Energy Well, increased energy storage capacity (+250) 15979 | -3/Section 7 | Warped through subspace 15993 | -3/Section 7 | Found Matter Drive 15997 | -3/Section 7 | Found Transdimensional Reconstructor 15998 | -3/Section 7 | Found Transdimensional Reconstructor 16004 | -3/Section 7 | Spotted Executioner 16004 | -3/Section 7 | Spotted Executioner 16031 | -3/Section 7 | Lost 3 parts (1n2u) 16087 | -3/Section 7 | Spotted Striker 16087 | -3/Section 7 | Spotted Striker 16123 | -3/Section 7 | Found Sigix Sheargun 16124 | -3/Section 7 | Found Sigix Sheargun 16127 | -3/Section 7 | Spotted Striker 16127 | -3/Section 7 | Spotted Striker 16132 | -3/Section 7 | Found Sigix Shearcannon 16133 | -3/Section 7 | Warped through subspace 16152 | -3/Section 7 | Integrated with Sigix Exoskeleton 16290 | -3/Section 7 | Core integrity fell below 50% 16304 | -3/Section 7 | Discovered exit to Research (range 18) 16376 | -3/Section 7 | Spotted S7 Guard 16383 | -3/Section 7 | Found Core Regenerator 16393 | -3/Section 7 | Entered Research 16393 | -2/Research | Evolved 2 slots: Utility x2 16398 | -2/Research | Emitted hypermatrix ping 16403 | -2/Research | Assembled emerged from beneath the floor 16418 | -2/Research | Build established: Alien-Sigix 16484 | -2/Research | Discovered new exit (range 18) 16533 | -2/Research | Identified exit to Testing 16633 | -2/Research | Entered Testing 16642 | -2/Testing | Found Prototype Device 16642 | -2/Testing | Identified Exp. Hardlight Generator 16673 | -2/Testing | Found Prototype Protection 16673 | -2/Testing | Identified Med. Regenerative Plating 16677 | -2/Testing | Found Prototype Protection 16677 | -2/Testing | Identified SHELL Armor 16816 | -2/Testing | Found Unknown Device 16816 | -2/Testing | Identified Adv. Force Booster 16841 | -2/Testing | Sigix Exoskeleton integrity reduced to 80% 16856 | -2/Testing | Found Prototype Device 16856 | -2/Testing | Identified Thermal Barrier 16867 | -2/Testing | Central database locked down 16962 | -2/Testing | Warped through subspace 17019 | -2/Testing | Sigix Exoskeleton integrity reduced to 60% 17045 | -2/Testing | Discovered new exit (range 18) 17062 | -2/Testing | Scanned by Researcher 17063 | -2/Testing | Warped through subspace 17095 | -2/Testing | Found Prototype Device 17095 | -2/Testing | Identified 2N-1CE's Frost Array 17107 | -2/Testing | Sigix Exoskeleton integrity reduced to 40% 17165 | -2/Testing | Spotted Investigator 17166 | -2/Testing | Spotted Executioner 17166 | -2/Testing | Spotted Executioner 17170 | -2/Testing | Core integrity fell below 50% 17175 | -2/Testing | Sigix Exoskeleton integrity reduced to 20% 17200 | -2/Testing | Warped through subspace 17210 | -2/Testing | Exoskeleton Destroyed Last Messages --------------- 17196_ I-47 Archangel distress signal jammed. 17197_ P-80 Master resets G-73 Enforcer, system corruption cleaned. 17197_ I-47 Archangel distress signal jammed. 17197_ Quantum Shear penetrates Investigator. 17197_ I-47 Archangel distress signal jammed. 17197_ P-80 Master resets L-61 Swordsman, system corruption cleaned. 17197_ I-47 Archangel distress signal jammed. 17198_ Quantum Shear penetrates Investigator. 17198_ I-47 Archangel distress signal jammed. 17199_ Core Membrane filtered system corruption (1). 17199_ I-47 Archangel distress signal jammed. 17199_ Penetrated by Slug. 17199_ Slug penetrates Earth. 17199_ I-47 Archangel distress signal jammed. 17200_ P-80 Master resets Executioner, system corruption cleaned. 17200_ Warped through subspace. 17201_ Core Membrane filtered system corruption (1). 17206_ Emergency Access malfunctions. 17207_ Core Membrane filtered system corruption (1). 17210_ Sigix Exoskeleton destroyed. Map ----- +----------------------------------------------------+ | ??"""########################################????? | | """""########################################????? | | &"#########################################???? | | ""#########################################???? | | """#########################################???? | | """#########################################???? | | +#############################################???? | | ###################### ! ###############??? | | ##################### ###############??? | | ################### +== [ ###############??? | | #############"""### ##= ### #########??? | | #############"T"### ## ### #########??? | | #############" "###+## """"" ### ###########? | | ############ # """"" # ! | | ############ # """"" + | | ####### !# # # """ """ """ | | " # # / ! # """ """ """ | | "T + * # "" C # """ """ """ | | ####### # # "" # | | ######## ## # "T # """ """ """ "" | | ######## ## # "" ! # """ """ """ "" | | ## # ############ "" # """ """ """ "" | | ## ! # ############ # | | ## # #############+######## | | ## # ###################### " | | =# = ]# X #################"F" | | #! # ###+######## # "# ###""" | | =+% # # ##### #= # """ ###### | | # ! # #" "##### " # " " ###### | | ### !# #" ""##### + * p " ###### | | ### # #" "##### ##p#p# ###### | | ### # ##""" ##### i # " ###### | | ### + ##] #""##### = # " ###### | | #########+############# T " """" ###### | | ##### ######### # ###### | | ##### = / ######### ^ # # #### | | ##### ######### # ## ### | | ##### ######### / ####"#+######"### ## | | ##### = ######### #####=[######"##"""# | | ##### +| !*! ! ######*##### %= | | #####] = ############ ######% + = | | ##### ############ ############ | | ########################## ##########"" ! | | ########################## # = ## | | ########################## # ########## | | ########################## # ######## | | ########################## # ######## | | ########################## # """ """ ######## | | ########################## # """ """ ######## | | ########################## # """ """ ######## | +----------------------------------------------------+ Best States ------------- Heat Dissipation 129 Energy Generation 99 Energy Capacity 700 Matter Stores 600 Matter Capacity 600 Sight Range 16 Terrain Scan Range 20 Terrain Scan Density 110 ECM Strength 2 Jamming Range 16 Cloak Strength 2 Power Amplification 30 Additional Mass Support 20 Base Temperature (-) 200 Corruption Block 15 Armor Coverage 900 Resistance: KI 50 Resistance: TH 50 Resistance: EX 50 Resistance: EM 50 Resistance: I 50 Resistance: S 50 Resistance: P 50 Core Shielding 30 Power Shielding 90 Propulsion Shielding 66 Utility Shielding 66 Weapon Cycling 20 Evasion (%) 75 Melee Accuracy 8 Target Analysis 8 Energy Filtering 30 Offensive Hacking 25 Defensive Hacking 39 Item Schematics ----------------- Q-thruster | -3/Quarantine | Scanalyzed Robot Schematics ------------------ None Fabricated ------------ Lgt. Particle Reactor | x2 | -6/Factory | Preloaded Repaired ---------- Particle Gun | 24% | -10/Materials Cld. Nuclear Pulse Thruster | 24% | -3/Section 7 Studied --------- Q-thruster | -3/Quarantine | Hacked Impulse Thruster Array | -3/Quarantine | Hacked Mic. Antimatter Reactor | -3/Quarantine | Hacked Field Propulsion Array | -3/Quarantine | Hacked Lgt. Particle Reactor | -3/Quarantine | Hacked Quantum Reactor | -2/Testing | Hacked Alien Tech Used ----------------- Integrated Reactor Transdimensional Reconstructor Core Reset Matrix Phase Armor Phase Redirector Sigix Broadsword Core Membrane Integrated Dissipator High-powered Transdimensional Reconstructor Matter Drive LRC Storage LRC Energy Well Sigix Sheargun Sigix Exoskeleton Achievements -------------- Hornet's Nest Integration Complete Recruitment Drive Sacrificial Teamwork Challenges ------------ None Game ------ Seed DecoderTeslaCanceller Manual? 0 Play Time 05:56:32 Cumulative 469.8 hours Start 2026.08.27 @ 02:31:00 End 2026.08.27 @ 19:51:50 Sessions 3 Manual Loads 0 Difficulty Rogue Special Mode None Game No. 343 Rogue 343 Adventurer 0 Explorer 0 Win Type - Total 9 Types 4/0/3/2/0/0/0/0/0/0 Lore% 53 Gallery% 70 Achievement% 57 Wizard Run 0 Options --------- Layout 2 ASCII 0 Keyboard 1 Movement Vi Keybinds 0 Fullscreen 2 Font 32/Smallcaps Map View 77x44 Zoom Use 0% Tactical HUD 1 Map Filters NONE Filters NONE Steam 1 RUN: ce7525f8-2bcc-4c90-b7e3-8a06daad2813